[Event "Portuguese Chess-ch 2022"]
[Site "Leiria"]
[Date "2022.09.12"]
[Round "1.2"]
[White "Martins, Bruno Andre Leite"]
[Black "Fernandes, Antonio"]
[Result "0-1"]
[ECO "C45"]
[WhiteElo "2308"]
[BlackElo "2327"]
[Annotator "TA"]
[PlyCount "42"]
[EventDate "2022.09.11"]
[EventCountry "POR"]
[SourceTitle "playchess.com"]
[Source "ChessBase"]
[SourceQuality "1"]
[TimeControl "5400+30"]

{[%evp 17,42,0,-26,-45,-35,-58,-48,-52,-54,-38,-43,-161,-150,-163,-152,-292,-277,-289,-287,-277,-268,-415,-389,-963,-952,-2113,-816]} 1. e4 {[%emt 0:00:19]} e5 {[%emt 0:30:27]} 2. Nf3 {[%emt 0:00:35]} Nc6 {[%emt 0:02:27]} 3. d4 {[%emt 0:00:25]} exd4 {[%emt 0:01:01]} 4. Nxd4 {[%emt 0:00:06]} Bc5 {[%emt 0:05:21]} 5. Nb3 {[%emt 0:07:26]} Bb6 {[%emt 0:01:50]} 6. Nc3 {[%emt 0:00:19]} Qf6 {[%emt 0:01:41]} 7. Qe2 {[%emt 0:02:21]} Nge7 {[%emt 0:00:56]} 8. Nd5 {[%emt 0:04:36]} Nxd5 {[%emt 0:13:49]} 9. exd5+ {[%emt 0:00:17]} Ne7 {[%emt 0:00:02]} 10. c4 {[%emt 0:05:32] aiming for c5. C45: Scotch Game.} d6 {[%emt 0:00:50] Prevents c5.} 11. h4 {[%emt 0:23:00] Threatens to win with Bg5.} (11. c5 dxc5 12. h4 Qd6 $17) 11... h6 {[%emt 0:11:52] Against Bg5} 12. g4 {[%emt 0:01:10] [#] Black is slightly better.} Qg6 $146 {[%emt 0:01:09]} ({Predecessor:} 12... a5 13. g5 Qe5 14. Qxe5 dxe5 15. gxh6 gxh6 16. a4 Nf5 17. c5 Ba7 18. Bb5+ Bd7 19. Bxd7+ Kxd7 {0-1 (75) Dashdorzh,A (1549)-Zorin,A (2183) Ekaterinburg 2018}) 13. Rg1 {[%emt 0:16:29]} h5 {[%emt 0:00:49][%cal Rc8g4]} 14. Bh3 {[%emt 0:01:36]} (14. Bg5 $15 f6 15. gxh5 Qxh5 16. Qxh5+ Rxh5 17. Be2) 14... hxg4 $19 {[%emt 0:10:33]} ({Weaker is} 14... Bxg4 15. Bxg4 hxg4 16. Rxg4 $11) 15. Bxg4 {[%emt 0:03:37][%cal Og4d7] [#] Bd7+! is the strong threat.} Kf8 $1 {[%emt 0:00:03]} 16. Kf1 {[%emt 0:13:45]} ({Avoid the trap} 16. Bg5 $2 f6 17. Qf3 Nf5 18. Bxf5 Qxf5 19. Qxf5 Bxf5) (16. Rg3 $17 {is the only way for White.} Bxg4 17. Rxg4) 16... Bf5 {[%emt 0:01:29]} 17. Bxf5 {[%emt 0:08:07]} ({Don't go for} 17. Bg5 $2 {[#]} Bd3 $1 18. Bxe7+ Kg8 $19) 17... Qxf5 {[%emt 0:00:02]} 18. Bg5 {[%emt 0:02:24]} Ng6 {[%emt 0:06:39] White must now prevent ...Re8.} 19. Re1 {[%emt 0:05:09]} (19. Rg3 {keeps fighting.}) 19... f6 {[%emt 0:03:48] Dancing on a razor blade.} 20. h5 $2 {[%emt 0:01:03] [#]} (20. Bd2 Rxh4 21. c5 dxc5 22. Qe3) 20... Rxh5 $3 {[%emt 0:01:16][%mdl 512] ( -> ...Rh2)} 21. c5 {[%emt 0:00:53]} (21. Bf4 Qh3+) 21... Qh3+ {[%emt 0:00:15] White did not feel at home in the position after the opening.  Weighted Error Value: White=0.95/Black=0.00 (flawless)} 0-1

[Event "Portuguese Chess-ch 2022"]
[Site "Leiria"]
[Date "2022.09.12"]
[Round "1.3"]
[White "Veiga, Jose Francisco R P N"]
[Black "Rocha, Sergio"]
[Result "0-1"]
[ECO "C01"]
[WhiteElo "2389"]
[BlackElo "2324"]
[Annotator "TA"]
[PlyCount "146"]
[EventDate "2022.09.11"]
[EventCountry "POR"]
[SourceTitle "playchess.com"]
[Source "ChessBase"]
[SourceQuality "1"]
[TimeControl "5400+30"]

{[%evp 14,146,31,23,19,-10,26,25,65,66,54,57,50,32,40,26,13,-33,-11,-19,0,0,0,0,-8,-8,0,-13,-20,-46,-8,-26,-31,-44,-31,-34,-33,-64,-70,-73,-60,-64,-76,-72,0,0,0,0,0,-188,-182,-168,-168,-155,-154,-374,-370,-644,-635,-602,-560,-477,-68,-49,-70,-94,-61,-148,-136,-459,-344,-866,-306,-322,-312,-622,-554,-906,-755,-733,-749,-881,-770,-2212,-644,-888,-661,-1276,-1182,-1845,-1537,-1594,-1431,-1384,-1208,-1137,-1143,-6183,-5769,-6151,-5593,-5389,-2489,-1896,-1769,-1605,-1586,-1455,-1438,-1261,-1261,-29970,-29965,-7150,-2580,-6720,-6179,-5473,-1367,-1031,-786,-6614,-6482,-5493,-2318,-1850,-1888,-5289,-3477,-7074,-5197,-29986,-29987,-29987,-29988]} 1. e4 e6 2. d4 d5 3. exd5 exd5 4. Nf3 Nf6 5. Bd3 c5 {[%cal Bc7c5,Bc5c4][%mdl 32]} 6. O-O c4 7. Re1+ Be7 8. Bf1 O-O {C01: French: Exchange Variation.} 9. Nc3 Bg4 10. h3 Bh5 {White has an edge.} 11. g4 Bg6 12. Ne5 Bb4 13. Bg2 (13. Nxg6 fxg6 14. Bg2 Qd7 $11) 13... Nc6 {[#]} 14. Nxg6 $146 ({Predecessor:} 14. Bg5 Bxc3 15. bxc3 Qd6 16. Rb1 Ne4 17. Bxe4 dxe4 18. Bf4 Nxe5 19. Bxe5 Qd5 20. Qc1 {0-1 (57) Rumpf,T (2085)-Miedema,D (2339) Germany 2013}) 14... hxg6 15. Re3 (15. Bd2 $11 {is superior.}) 15... Bxc3 $15 16. bxc3 Re8 17. Rb1 Qd7 18. a4 Rxe3 19. Bxe3 Re8 20. Qc1 Ne4 21. Qa3 b6 22. Re1 f5 23. f3 Nf6 24. Kf2 Nd8 25. g5 Nh5 26. f4 Ne6 27. Qc1 Nc7 28. Qa3 Kf7 (28... a5 $17) 29. a5 $11 Ne6 30. axb6 axb6 31. Bc1 (31. Qc1 Qd6 32. Qd2 Nhxf4 33. Bxf4 Nxf4 34. Rxe8 Kxe8 35. Qe3+ Kf7 $17) (31. Bf3 $11 {and White has nothing to worry.}) 31... Nexf4 $19 32. Rxe8 Qxe8 {Chess con chili.} (32... Kxe8 33. Qa8+ Qd8 34. Qc6+ (34. Qxd8+ Kxd8 35. Bxf4 Nxf4 $11) 34... Kf8 35. h4 $11) 33. Bf3 {[#] Prevents Qe2+.} Qb8 {Against Qd6} (33... Nxh3+ 34. Kf1 N3f4 35. Bxf4 Nxf4 36. Qd6 $11) 34. Qa4 $2 (34. Ke1 $17) 34... Kg8 (34... b5 35. Qa6 $19) 35. Ke1 $2 (35. Bxf4 Qxf4 36. Qe8+ Kh7 37. Qe3 Qg3+ 38. Ke2) 35... b5 36. Qa6 Kh7 37. Kd1 b4 $2 (37... Ng3 $19 38. h4 Ne4 39. Bxe4 dxe4) 38. cxb4 $1 $15 Qxb4 39. Qa3 {Prevents Qc3. Black keeps a firm grip on the game.} Qb8 {Black is much more active.} ({Of course not} 39... Qb1 $6 40. Qb2 Qxb2 41. Bxb2 $11) 40. Qa6 ({White should play} 40. Qe3 $15) 40... Ng3 $36 {[%mdl 2048] Keeping White busy.} (40... Qb1 41. Qa3 $15) 41. h4 {[%mdl 8192]} (41. Qa3 $17 {nothing else works.}) 41... Ne4 ({Worse is} 41... Qb1 42. Qa3 $17) 42. Qa5 {Against Nc3+} (42. Bxe4 fxe4 43. Qa3) 42... Qb1 $2 (42... Nf2+ 43. Kd2 Ne6) 43. Qa3 $19 Ne6 {Pair of Knights!} 44. h5 $2 (44. Bxe4 fxe4 45. Qb2 Qxb2 46. Bxb2) 44... Qb6 45. c3 gxh5 46. Bxh5 N6xg5 {[#] aiming for ...Qh6.} 47. Kc2 Qh6 48. Be8 Qh3 (48... Qh2+ $142 49. Kb1 Qb8+ 50. Qb2 Qxe8 51. Bxg5 Nxg5 52. Qh2+ Kg6 53. Qd6+ Qe6) 49. Bd7 Nf6 {White must now prevent ...Qg2+.} 50. Bc6 Nge4 {Hoping for ...Qf1.} 51. Qa5 Qd3+ 52. Kb2 Nf2 {Threatens to win with ...Nd1+.} 53. Ba4 Nd1+ 54. Bxd1 Qxd1 {[%mdl 4096] Endgame KQB-KQN} 55. Qc7 Qb3+ 56. Ka1 Qxc3+ 57. Kb1 Qd3+ 58. Ka1 Qe4 59. Qh2+ Kg6 60. Qg3+ Kf7 61. Qc7+ Qe7 62. Qc6 Qa7+ 63. Kb1 Qxd4 64. Bb2 Qe4+ 65. Ka2 Qe6 66. Qc7+ Kg6 {Strongly threatening ...Qe2.} 67. Ka1 Qe1+ 68. Ka2 Qe2 69. Qg3+ Qg4 70. Qd6 f4 71. Bxf6 gxf6 72. Qxd5 Qe2+ 73. Ka1 Qe5+ {Weighted Error Value: White=0.94/Black=0.62} 0-1

[Event "Portuguese Chess-ch 2022"]
[Site "Leiria"]
[Date "2022.09.12"]
[Round "1.4"]
[White "Sousa, Andre Ventura"]
[Black "Rego, Pedro Filipe"]
[Result "1/2-1/2"]
[ECO "A15"]
[WhiteElo "2449"]
[BlackElo "2273"]
[Annotator "TA"]
[PlyCount "106"]
[EventDate "2022.09.11"]
[EventCountry "POR"]
[SourceTitle "playchess.com"]
[Source "ChessBase"]
[SourceQuality "1"]
[TimeControl "5400+30"]

{[%evp 9,106,16,29,20,25,-2,27,22,33,32,23,24,34,29,32,35,26,33,56,43,46,6,6,0,0,0,0,0,0,0,0,-30,-17,-14,-18,-16,0,-27,-25,-28,9,0,20,0,0,0,0,0,0,0,-5,-32,-22,-114,-109,-105,-114,-116,-116,-132,-108,-131,-104,-129,-104,-225,-179,-154,-85,-88,-22,-37,-37,-36,-36,-37,-38,-152,-95,-95,-95,-100,-79,-100,-45,-44,-8,-8,-8,-57,-20,-20,-20,-20,-20,-20,-13,-13,8]} 1. c4 {[%emt 0:00:58]} Nf6 {[%emt 0:00:24]} 2. g3 {[%emt 0:00:20]} e5 {[%emt 0:01:07]} 3. Bg2 {[%emt 0:00:12]} c6 {[%emt 0:00:06]} 4. Nf3 {[%emt 0:00:05][%cal Bg1f3,Bf3d4,Bd4b3,Bb3d2][%mdl 32]} e4 {[%emt 0:00:44]} 5. Nd4 {[%emt 0:00:32]} d5 {[%emt 0:00:12]} 6. d3 {[%emt 0:02:15] A20: English Opening: 1...e5.} Bc5 {[%emt 0:05:38]} 7. Nb3 {[%emt 0:04:05]} Bb4+ {[%emt 0:00:51]} (7... Bb6 $5 {[%cal Rd5c4]}) 8. Bd2 {[%emt 0:00:35] White has an edge.} Bxd2+ {[%emt 0:00:40]} 9. Qxd2 {[%emt 0:00:23]} dxc4 {[%emt 0:01:40]} 10. dxc4 {[%emt 0:00:05] [#]} a5 $146 {[%emt 0:03:33]} ({Predecessor:} 10... Qe7 11. Nc3 e3 12. Qxe3 Qxe3 13. fxe3 Ng4 14. Bh3 Ke7 15. Bxg4 Bxg4 16. Nc5 b6 {½-½ (37) Giri,A (2780)-Najer,E (2635) Khanty-Mansiysk 2019}) 11. Nc3 {[%emt 0:04:43][%cal Bb1c3,Bc3e4,Be4c5,Bc5d3,Bd3f2][%mdl 32]} Qxd2+ {[%emt 0:04:39]} 12. Nxd2 {[%emt 0:03:51]} e3 $1 {[%emt 0:00:51]} 13. fxe3 {[%emt 0:00:10]} Ng4 {[%emt 0:02:04]} 14. Bh3 {[%emt 0:06:17]} h5 {[%emt 0:07:52]} 15. Nce4 {[%emt 0:14:33]} Ke7 {[%emt 0:11:26]} 16. Bxg4 {[%emt 0:00:31]} hxg4 {[%emt 0:00:25]} 17. Nc5 {[%emt 0:11:11]} Rh5 {[%emt 0:00:49]} 18. Nd3 {[%emt 0:00:22]} Be6 {[%emt 0:02:06]} 19. O-O {[%emt 0:00:51]} Nd7 {[%emt 0:01:25]} 20. Rfc1 {[%emt 0:07:59]} Rd8 {[%emt 0:02:42][%mdl 1024] Black has compensation.} 21. Rc2 {[%emt 0:13:41]} Nc5 {[%emt 0:01:25]} 22. Nf2 {[%emt 0:02:24]} a4 {[%emt 0:06:09]} 23. Nf1 {[%emt 0:05:41]} Re5 {[%emt 0:03:14]} 24. Rac1 {[%emt 0:03:27]} Rh5 {[%emt 0:11:42]} 25. Rc3 {[%emt 0:00:56]} Na6 {[%emt 0:04:24]} 26. Nd3 {[%emt 0:04:16]} Nc5 {[%emt 0:02:15][%cal Ba6c5,Bc5e4,Be4d2][%mdl 32]} 27. Ra3 {[%emt 0:02:29]} b5 {[%emt 0:05:48]} 28. Nb4 {[%emt 0:03:03]} Rd6 {[%emt 0:01:04]} 29. cxb5 {[%emt 0:00:40]} cxb5 {[%emt 0:00:14]} 30. Rac3 {[%emt 0:00:05]} Bc4 {[%emt 0:01:16]} 31. R3c2 {[%emt 0:05:38]} (31. e4 $11) 31... Ne4 $36 {[%emt 0:01:33][%mdl 2048] Black is in control.} 32. Rxc4 {[%emt 0:01:38]} bxc4 {[%emt 0:01:50]} 33. Rxc4 {[%emt 0:00:02]} Nd2 {[%emt 0:00:29]} 34. Rc7+ {[%emt 0:00:36]} Ke8 {[%emt 0:02:16] Hoping for ...Nxf1.} 35. Nd3 {[%emt 0:01:13]} Nxf1 {[%emt 0:00:15]} 36. Kxf1 {[%emt 0:00:04]} Rxh2 {[%emt 0:00:24][%mdl 4096] Endgame KRR-KRN} 37. Rc4 {[%emt 0:00:16]} (37. Rc8+ $17 Kd7 38. Rc4) 37... a3 {[%emt 0:02:03]} 38. bxa3 {[%emt 0:00:27] [#]} f5 {[%emt 0:02:58]} (38... Rh1+ $142 $1 39. Kf2 (39. Kg2 $2 Rdh6 $19) 39... Rf6+ 40. Rf4 Rh2+ 41. Kf1 Rc6 42. Re4+ Kf8 43. Rxg4 Rc2) 39. e4 {[%emt 0:00:34]} f4 {[%emt 0:00:56]} (39... Rb6 $17 {Threatens to win with ...Rb1+.} 40. Rb4 Re6) 40. e5 {[%emt 0:00:00]} Rb6 {[%emt 0:00:00] aiming for ...Rb1+.} 41. Rb4 {[%emt 0:00:00] Prevents Rb1+.} Rc6 {[%emt 0:00:00] ...Rc2 is the strong threat.} 42. Rxf4 {[%emt 0:00:00]} ({But not} 42. gxf4 $2 Rc2 43. Rb8+ Kf7 44. Rb7+ Kg6 45. f5+ Kxf5 46. Rf7+ Kg6 $19) 42... Rc2 {[%emt 0:00:00][%csl LRa2,LRe2]} 43. Rf2 {[%emt 0:00:00] [#]} (43. Re4 $15) 43... Rxf2+ {[%emt 0:00:00]} (43... Rh1+ $142 $1 44. Kg2 Rh5) 44. Kxf2 {[%emt 0:00:00]} Rxa2 {[%emt 0:00:00] KR-KN} 45. Ke3 {[%emt 0:00:00]} Ke7 {[%emt 0:00:00]} 46. Nc5 {[%emt 0:00:00]} Rxa3+ {[%emt 0:00:00]} (46... Rc2 $17 47. Nd3 Kf7) 47. Kf4 $15 {[%emt 0:00:00]} Rc3 {[%emt 0:00:00]} 48. Nd3 {[%emt 0:00:00]} Rc2 {[%emt 0:00:00]} 49. e3 {[%emt 0:00:00]} (49. Kxg4 $11 {is superior.} Rxe2 50. Nf4) 49... Ke6 {[%emt 0:00:00]} 50. Kxg4 {[%emt 0:00:00] The position is equal.} Rc3 {[%emt 0:00:00][%mdl 64] Deflection} 51. Nf4+ {[%emt 0:00:00]} Kxe5 {[%emt 0:00:00]} 52. Nh5 {[%emt 0:00:00]} Rxe3 {[%emt 0:00:00]} 53. Nxg7 {[%emt 0:00:00]} Rxg3+ {[%emt 0:00:00] Weighted Error Value: White=0.17 (very precise) /Black=0.14 (very precise)} 1/2-1/2

[Event "Portuguese Chess-ch 2022"]
[Site "Leiria"]
[Date "2022.09.12"]
[Round "1.5"]
[White "Dias, Paulo"]
[Black "Barria Santos, Jose Guilherme"]
[Result "1-0"]
[ECO "E32"]
[WhiteElo "2341"]
[BlackElo "2384"]
[Annotator "TA"]
[PlyCount "128"]
[EventDate "2022.09.11"]
[EventCountry "POR"]
[SourceTitle "playchess.com"]
[Source "ChessBase"]
[SourceQuality "1"]
[TimeControl "5400+30"]

{[%evp 13,128,0,0,0,0,0,0,0,0,0,0,0,0,0,0,0,0,0,0,0,0,0,0,0,0,0,0,-8,-8,-15,-8,-43,-14,-15,-12,-12,-9,-8,-10,-17,-4,-12,-8,-8,-8,-8,0,-8,-8,-8,0,-3,-2,-8,-8,-11,0,-8,-8,-8,0,0,0,0,0,0,0,0,0,-13,0,-22,0,-19,0,0,0,0,0,0,0,0,98,99,110,110,114,106,106,106,106,106,109,57,56,40,52,15,110,110,110,110,631,613,603,0,29973,29974,29973,29974,29973,29974,29975,29976,29971,29962,12850]} 1. d4 {[%emt 0:00:09]} Nf6 {[%emt 0:00:45]} 2. c4 {[%emt 0:00:05]} e6 {[%emt 0:00:06]} 3. Nc3 {[%emt 0:00:37]} Bb4 {[%emt 0:00:05]} 4. Qc2 {[%emt 0:01:25]} O-O {[%emt 0:02:18]} 5. e4 {[%emt 0:01:30]} d5 {[%emt 0:00:19]} 6. e5 {[%emt 0:00:51]} Ne4 {[%emt 0:00:08]} 7. Bd3 {[%emt 0:00:26]} c5 $1 {[%emt 0:00:15]} 8. Nge2 {[%emt 0:01:04] E32: Nimzo-Indian: Classical (4 Qc2): 4...0-0.} cxd4 {[%emt 0:00:06]} 9. Nxd4 {[%emt 0:00:20]} Nd7 {[%emt 0:00:07]} 10. Bf4 {[%emt 0:00:57] The position is equal.} Qh4 {[%emt 0:00:07]} 11. g3 {[%emt 0:02:18]} Qh5 {[%emt 0:00:12]} 12. O-O {[%emt 0:03:34]} g5 {[%emt 0:00:03]} 13. cxd5 {[%emt 0:05:20]} Bxc3 {[%emt 0:04:07]} 14. bxc3 {[%emt 0:02:38][%cal Od5e6]} exd5 {[%emt 0:00:18]} 15. Bxe4 {[%emt 0:04:31]} dxe4 {[%emt 0:01:19]} 16. e6 {[%emt 0:02:04]} gxf4 {[%emt 0:00:13]} 17. exd7 {[%emt 0:00:59]} Bxd7 {[%emt 0:00:08]} 18. Qxe4 {[%emt 0:01:06]} fxg3 {[%emt 0:00:06]} 19. fxg3 {[%emt 0:05:33]} b6 {[%emt 0:00:12] [#]} 20. Qf3 $146 {[%emt 0:22:23]} ({Predecessor:} 20. Nf5 Rae8 21. Qd5 Bxf5 22. Rxf5 Qe2 23. Raf1 Qe3+ 24. R1f2 Qe1+ 25. Rf1 Qe3+ 26. R1f2 Qe1+ 27. Rf1 Qe3+ {½-½ (27) So,W (2770)-Ding,L (2799) chess24.com INT 2021}) 20... Qxf3 {[%emt 0:01:24]} 21. Rxf3 {[%emt 0:03:17]} Rfe8 {[%emt 0:01:58]} 22. Kf2 {[%emt 0:03:11]} Kg7 {[%emt 0:05:09]} 23. Re1 {[%emt 0:03:51]} Rxe1 {[%emt 0:00:15]} 24. Kxe1 $11 {[%emt 0:00:08][%mdl 4096] Endgame KRB-KRN} Re8+ {[%emt 0:00:04]} 25. Kd2 {[%emt 0:00:40]} Re5 {[%emt 0:01:09]} 26. c4 {[%emt 0:09:42]} Rc5 {[%emt 0:10:42]} 27. Rc3 {[%emt 0:01:34]} Ra5 {[%emt 0:01:28]} 28. a3 {[%emt 0:00:29]} Kf6 {[%emt 0:01:04]} 29. Rf3+ {[%emt 0:04:20]} Ke7 {[%emt 0:19:52]} 30. Kc2 {[%emt 0:00:12]} Rc5 {[%emt 0:00:35]} 31. Kb3 {[%emt 0:02:28]} Re5 {[%emt 0:07:14]} 32. Kc3 {[%emt 0:03:22]} h5 {[%emt 0:09:07]} 33. Nc2 {[%emt 0:02:49]} Be6 {[%emt 0:04:28]} 34. Nd4 {[%emt 0:04:36] Threatens to win with Nc6+.} Bd7 {[%emt 0:00:23] Inhibits Nc6+.} 35. Nc2 {[%emt 0:00:51]} Rc5 {[%emt 0:02:18]} 36. Kd4 {[%emt 0:01:08]} Bg4 {[%emt 0:03:49]} 37. Rb3 {[%emt 0:04:02]} Be6 {[%emt 0:01:38]} 38. Ne3 {[%emt 0:00:27]} Kd6 {[%emt 0:00:16]} 39. h4 {[%emt 0:01:54]} Kc6 {[%emt 0:07:29]} 40. Rc3 {[%emt 0:00:00]} Kd6 {[%emt 0:00:00]} 41. Nf1 {[%emt 0:00:00]} Ra5 {[%emt 0:00:00]} 42. Nd2 {[%emt 0:00:00]} Ra4 {[%emt 0:00:00]} 43. Ke3 {[%emt 0:00:00]} a5 {[%emt 0:00:00]} 44. c5+ {[%emt 0:00:00]} bxc5 {[%emt 0:00:00] White must now prevent ...f5.} 45. Ne4+ {[%emt 0:00:00]} Ke7 {[%emt 0:00:00]} 46. Nxc5 {[%emt 0:00:00]} Rg4 {[%emt 0:00:00]} 47. Kf2 {[%emt 0:00:00]} Bd5 {[%emt 0:00:00] [#]} (47... Kf6 $11) 48. Nd3 $1 $16 {[%emt 0:00:00]} Rd4 {[%emt 0:04:36]} 49. Nf4 {[%emt 0:00:00]} a4 {[%emt 0:00:32]} 50. Nxh5 {[%emt 0:00:00]} Rd2+ {[%emt 0:01:10]} 51. Ke3 {[%emt 0:00:00]} Ra2 {[%emt 0:00:02]} 52. Kf4 {[%emt 0:03:13]} Bb3 {[%emt 0:02:10]} 53. Re3+ {[%emt 0:00:59]} (53. Ng7 $16) 53... Kd6 $1 $14 {[%emt 0:07:09]} 54. Nf6 {[%emt 0:00:07] Strongly threatening h5.} Rxa3 {[%emt 0:00:20]} 55. Ne4+ {[%emt 0:00:38]} Ke7 {[%emt 0:03:15]} (55... Kc6 $11 {keeps the balance.}) 56. Kg5 $16 {[%emt 0:01:28] h5 is the strong threat.} Ra1 {[%emt 0:00:50]} 57. Nc5+ {[%emt 0:00:57]} Be6 $2 {[%emt 0:00:41][%mdl 8192]} (57... Kf8 $16) 58. Nxe6 $18 {[%emt 0:01:37]} fxe6 {[%emt 0:00:07] KR-KR} 59. g4 $2 {[%emt 0:01:26]} (59. h5 $18 {And now h6 would win.} Rd1 60. Re4) 59... a3 $2 {[%emt 0:02:50][%mdl 8192] [#]} (59... Rc1 $11) 60. h5 {[%emt 0:00:28][%cal Bh4h5,Bh5h6,Bh6h7][%mdl 32] White mates.} a2 {[%emt 0:00:04]} 61. Ra3 {[%emt 0:00:50]} e5 {[%emt 0:03:28]} 62. h6 {[%emt 0:00:20]} Ke6 {[%emt 0:00:03]} 63. h7 {[%emt 0:01:02]} Rh1 {[%emt 0:00:04]} 64. Kg6 {[%emt 0:00:16]} Kd5 {Weighted Error Value: White=0.11 (very precise) /Black=0.33} 1-0

[Event "Portuguese Chess-ch 2022"]
[Site "Leiria"]
[Date "2022.09.13"]
[Round "2.3"]
[White "Rocha, Sergio"]
[Black "Sousa, Andre"]
[Result "0-1"]
[ECO "D37"]
[WhiteElo "2324"]
[BlackElo "2449"]
[Annotator "TA"]
[PlyCount "84"]
[EventDate "2022.09.11"]
[EventCountry "POR"]
[SourceTitle "playchess.com"]
[Source "ChessBase"]
[SourceQuality "1"]
[TimeControl "5400+30"]

{[%evp 13,84,-25,0,-22,-16,-13,-26,-25,-25,-27,-24,-21,-33,-35,-26,-64,-34,-54,-56,-153,-145,-157,-157,-164,-155,-148,-61,-345,-230,-227,-212,-218,-229,-255,-255,-255,-240,-239,-238,-232,-210,-340,-340,-511,-526,-460,-499,-758,-748,-732,-143,-743,-742,-742,-741,-677,-655,-549,-234,-735,-654,-29980,-29979,-29984,-29981,-29989,-29990,-29990,-29989,-29991,-29992,-29998,-29999]} 1. d4 Nf6 2. Nf3 e6 3. c4 d5 4. Nc3 dxc4 5. Qa4+ c6 6. Qxc4 b5 7. Qb3 a6 8. g3 {D43: Semi-Slav: 5 Bg5 h6.} Bb7 9. Bg2 c5 10. dxc5 {Black has an edge.} Bxc5 11. O-O O-O {[#]} 12. Bf4 $146 ({Predecessor:} 12. Bg5 Nbd7 13. Nd2 Bxg2 14. Kxg2 Qb6 15. Nce4 Be7 16. Rfd1 Rac8 17. Nxf6+ Bxf6 18. Be3 {1-0 (76) Ghaem Maghami,E (2537)-Potkin,V (2597) St Petersburg 2018}) 12... Nc6 13. Rac1 {[%cal Oc3b5]} Rc8 14. a3 h6 15. Qa2 Qe7 16. Ne5 ({White should try} 16. Rcd1 $15) 16... Nxe5 $17 17. Bxe5 Bxg2 18. Kxg2 Ng4 19. Bf4 Rfd8 {Black is more active.} (19... Qb7+ $17 20. e4 g5) 20. Rc2 $2 {[%mdl 8192]} (20. Ne4 $15) 20... Qb7+ ({But not} 20... g5 $2 21. f3 $17) 21. f3 Be3 $1 22. h3 e5 23. Bg5 hxg5 ({Don't go for} 23... Bxg5 $2 24. hxg4 Be3 25. Rh1 $19) 24. hxg4 a5 {Hoping for ...Qc7.} 25. b4 axb4 26. axb4 {[#]} Qc6 27. Rb1 (27. Rh1 $142 e4 28. fxe4) 27... Rd4 $19 {Threatens to win with ...Rc4.} 28. Qa3 (28. Rbb2 $142 Rc4 29. Nd1 Rxc2 30. Nxe3) 28... Bd2 29. Rb3 e4 {[%cal Be5e4,Be4f3][%mdl 32] Strongly threatening ...exf3+.} 30. Nxb5 (30. Qa1 $142 Be3 31. Qf1) 30... Qxc2 31. Nxd4 {[#]} Qc4 $2 (31... Qd1 $1 $19 {is more deadly.} 32. f4 g6) 32. e3 $2 {[%mdl 8192] Now White is beyond hope.} (32. Qb2 $17 Bc3 33. Rxc3 Qxc3 34. Qxc3 Rxc3 35. fxe4) 32... exf3+ 33. Kf2 {[#]} Bxe3+ $1 {[%mdl 512]} 34. Rxe3 Qxd4 {[%mdl 4096] Endgame KQR-KQR} 35. Qd3 {Against Rc2+} Qxg4 {...Qh5 is the strong threat.} 36. Re4 $2 (36. Re1) 36... Qh5 {( -> ...Qh1)} 37. b5 g4 {Black mates.} 38. Ke3 Qh6+ 39. Kf2 Qh2+ 40. Ke3 Qxg3 41. Qf1 f2+ 42. Kd4 Qc3+ {Weighted Error Value: White=0.98/Black=0.27 (precise)} 0-1